fUSD/lending_fUSD_20250215
["ID","MTS","AMOUNT","RATE_DAILY","PERIOD"]
[353142022,1739599848460,-500.0,0.00010958,2]
[353142023,1739599848470,-411.17875995,0.00010958,2]
[353142024,1739599848569,-88.82124005,0.00010958,2]
[353142025,1739599848581,-448.44915874,0.00010958,2]
[353142026,1739599848592,-500.0,0.00010958,2]
[353142027,1739599848603,-500.0,0.00010958,2]
[353142028,1739599848615,-500.0,0.00010958,2]
[353142029,1739599848625,-500.0,0.00010958,2]
[353142030,1739599848636,-500.0,0.00010958,2]
[353142031,1739599848647,-500.0,0.00010958,2]
[353142032,1739599848657,-500.0,0.00010958,2]
[353142033,1739599848667,-500.0,0.00010958,2]
[353142034,1739599848677,-500.0,0.00010958,2]
[353142035,1739599848693,-590.01,0.00010958,2]
[353142036,1739599848706,-500.0,0.00010958,2]
[353142037,1739599848716,-500.0,0.00010958,2]
[353142038,1739599848727,-500.0,0.00010958,2]
[353142039,1739599848738,-500.0,0.00010958,2]
[353142040,1739599848749,-500.0,0.00010958,2]
[353142041,1739599848760,-500.0,0.00010958,2]
[353142042,1739599848771,-500.0,0.00010958,2]
[353142043,1739599848782,-500.0,0.00010958,2]
[353142044,1739599848792,-500.0,0.00010958,2]
[353142045,1739599848803,-500.0,0.00010958,2]
[353142046,1739599848813,-500.0,0.00010958,2]
[353142047,1739599848823,-500.0,0.00010958,2]
[353142048,1739599848833,-500.0,0.00010958,2]
[353142049,1739599848844,-500.0,0.00010958,2]
[353142050,1739599848856,-500.0,0.00010958,2]
[353142051,1739599848867,-500.0,0.00010958,2]
[353142052,1739599848877,-500.0,0.00010958,2]
[353142053,1739599848889,-500.56644236,0.00010958,2]
[353142054,1739599848899,-573.86,0.00010958,2]
[353142055,1739599848910,-500.0,0.00010958,2]
[353142056,1739599848920,-500.0,0.00010958,2]
[353142057,1739599848931,-500.0,0.00010958,2]
[353142058,1739599848941,-501.48922676,0.00010958,2]
[353142059,1739599848951,-500.0,0.00010958,2]
[353142060,1739599848962,-648.54,0.00010958,2]
[353142061,1739599848975,-500.0,0.00010958,2]
[353142062,1739599848985,-500.0,0.00010958,2]
[353142063,1739599848996,-500.0,0.00010958,2]
[353142064,1739599849007,-500.0,0.00010958,2]
[353142065,1739599849018,-500.0,0.00010958,2]
[353142066,1739599849029,-500.0,0.00010958,2]
[353142067,1739599849041,-500.0,0.00010958,2]
[353142068,1739599849051,-500.0,0.00010958,2]
[353142069,1739599849062,-500.0,0.00010958,2]
[353142070,1739599849073,-500.0,0.00010958,2]
[353142071,1739599849084,-500.0,0.00010958,2]
[353142072,1739599849093,-500.0,0.00010958,2]
[353142073,1739599849104,-500.0,0.00010958,2]
[353142074,1739599849116,-497.71336193,0.00010958,2]
[353142075,1739599849127,-500.0,0.00010958,2]
[353142076,1739599849137,-500.0,0.00010958,2]
[353142077,1739599849148,-500.0,0.00010958,2]
[353142078,1739599849158,-500.0,0.00010958,2]
[353142079,1739599849168,-500.0,0.00010958,2]
[353142080,1739599849179,-500.0,0.00010958,2]
[353142081,1739599849189,-491.0,0.00010958,2]
[353142082,1739599849201,-500.0,0.00010958,2]
[353142083,1739599849211,-500.0,0.00010958,2]
[353142084,1739599849223,-500.0,0.00010958,2]
[353142085,1739599849234,-500.0,0.00010958,2]
[353142086,1739599849245,-500.0,0.00010958,2]
[353142087,1739599849256,-500.0,0.00010958,2]
[353142088,1739599849266,-587.73,0.00010958,2]
[353142089,1739599849277,-500.0,0.00010958,2]
[353142090,1739599849287,-329.02486098,0.00010958,2]
[353142091,1739599849298,-500.0,0.00010958,2]
[353142092,1739599849307,-500.0,0.00010958,2]
[353142093,1739599849317,-500.0,0.00010958,2]
[353142094,1739599849327,-503.97429505,0.00010958,2]
[353142095,1739599849337,-528.5,0.00010958,2]
[353142096,1739599849349,-500.0,0.00010958,2]
[353142097,1739599849359,-500.0,0.00010958,2]
[353142098,1739599849370,-500.0,0.00010958,2]
[353142099,1739599849380,-493.18896454,0.00010958,2]
[353142100,1739599849389,-500.0,0.00010958,2]
[353142101,1739599849399,-500.0,0.00010958,2]
[353142102,1739599849409,-500.0,0.00010958,2]
[353142103,1739599849420,-503.04451138,0.00010958,2]
[353142104,1739599849430,-500.0,0.00010958,2]
[353142105,1739599849440,-500.0,0.00010958,2]
[353142106,1739599849450,-500.0,0.00010958,2]
[353142107,1739599849460,-500.0,0.00010958,2]
[353142108,1739599849470,-500.0,0.00010958,2]
[353142109,1739599849481,-500.0,0.00010958,2]
[353142110,1739599849492,-500.0,0.00010958,2]
[353142111,1739599849502,-500.0,0.00010958,2]
[353142112,1739599849513,-500.0,0.00010958,2]
[353142113,1739599849523,-500.0,0.00010958,2]
[353142114,1739599849533,-500.0,0.00010958,2]
[353142115,1739599849553,-532.69656472,0.00010958,2]
[353142116,1739599849564,-500.0,0.00010958,2]
[353142117,1739599849577,-500.0,0.00010958,2]
[353142118,1739599849587,-512.78653908,0.00010958,2]
[353142119,1739599849598,-575.99,0.00010958,2]
[353142120,1739599849608,-500.0,0.00010958,2]
[353142121,1739599849619,-500.0,0.00010958,2]
[353142122,1739599849629,-500.0,0.00010958,2]
[353142123,1739599849640,-504.40589379,0.00010958,2]
[353142124,1739599849655,-501.34854279,0.00010958,2]
[353142125,1739599849674,-500.0,0.00010958,2]
[353142126,1739599849684,-500.0,0.00010958,2]
[353142127,1739599849695,-500.0,0.00010958,2]
[353142128,1739599849706,-500.0,0.00010958,2]
[353142129,1739599849715,-500.0,0.00010958,2]
[353142130,1739599849725,-511.17869921,0.00010958,2]
[353142131,1739599849737,-626.95,0.00010958,2]
[353142132,1739599849749,-500.0,0.00010958,2]
[353142133,1739599849759,-254.68150923,0.00010958,2]
[353142134,1739599849769,-500.0,0.00010958,2]
[353142135,1739599849779,-500.0,0.00010958,2]
[353142136,1739599849789,-539.72,0.00010958,2]
[353142137,1739599849799,-500.0,0.00010958,2]
[353142138,1739599849809,-500.0,0.00010958,2]
[353142139,1739599849819,-500.0,0.00010958,2]
[353142140,1739599849829,-508.59214918,0.00010958,2]
[353142141,1739599849839,-500.0,0.00010958,2]
[353142142,1739599849849,-500.0,0.00010958,2]
[353142143,1739599849859,-500.0,0.00010958,2]
[353142144,1739599849869,-500.0,0.00010958,2]
[353142145,1739599849879,-500.0,0.00010958,2]
[353142146,1739599849889,-500.0,0.00010958,2]
[353142147,1739599849899,-500.0,0.00010958,2]
[353142148,1739599849909,-500.0,0.00010958,2]
[353142149,1739599849919,-500.0,0.00010958,2]
[353142150,1739599849929,-743.14,0.00010958,2]
[353142151,1739599849939,-502.80383403,0.00010958,2]
[353142152,1739599849949,-500.0,0.00010958,2]
[353142153,1739599849960,-500.0,0.00010958,2]
[353142154,1739599849969,-500.0,0.00010958,2]
[353142155,1739599849979,-500.0,0.00010958,2]
[353142156,1739599849988,-505.36876175,0.00010958,2]
[353142157,1739599849999,-500.0,0.00010958,2]
[353142158,1739599850009,-500.0,0.00010958,2]
[353142159,1739599850019,-500.0,0.00010958,2]
[353142160,1739599850028,-500.0,0.00010958,2]
[353142161,1739599850038,-500.0,0.00010958,2]
[353142162,1739599850048,-539.13,0.00010958,2]
[353142163,1739599850059,-500.0,0.00010958,2]
[353142164,1739599850068,-612.52,0.00010958,2]
[353142165,1739599850078,-500.0,0.00010958,2]
[353142166,1739599850088,-500.0,0.00010958,2]
[353142167,1739599850098,-500.0,0.00010958,2]
[353142168,1739599850107,-500.0,0.00010958,2]
[353142169,1739599850117,-500.0,0.00010958,2]
[353142170,1739599850127,-500.0,0.00010958,2]
[353142171,1739599850137,-500.0,0.00010958,2]
[353142172,1739599850147,-500.0,0.00010958,2]
[353142173,1739599850156,-500.0,0.00010958,2]
[353142174,1739599850166,-500.0,0.00010958,2]
[353142175,1739599850176,-500.0,0.00010958,2]
[353142176,1739599850185,-500.0,0.00010958,2]
[353142177,1739599850195,-505.90333943,0.00010958,2]
[353142178,1739599850205,-500.0,0.00010958,2]
[353142179,1739599850215,-500.0,0.00010958,2]
[353142180,1739599850224,-500.0,0.00010958,2]
[353142181,1739599850235,-260.26621049,0.00010958,2]
[353142182,1739599850245,-500.0,0.00010958,2]
[353142183,1739599850255,-500.0,0.00010958,2]
[353142184,1739599850265,-520.79,0.00010958,2]
[353142185,1739599850275,-500.0,0.00010958,2]
[353142186,1739599850284,-500.0,0.00010958,2]
[353142187,1739599850295,-500.0,0.00010958,2]
[353142188,1739599850304,-500.0,0.00010958,2]
[353142189,1739599850314,-500.0,0.00010958,2]
[353142190,1739599850323,-500.0,0.00010958,2]
[353142191,1739599850334,-500.0,0.00010958,2]
[353142192,1739599850343,-500.0,0.00010958,2]
[353142193,1739599850353,-500.0,0.00010958,2]
[353142194,1739599850363,-500.0,0.00010958,2]
[353142195,1739599850373,-500.0,0.00010958,2]
[353142196,1739599850382,-500.0,0.00010958,2]
[353142197,1739599850392,-500.0,0.00010958,2]
[353142198,1739599850402,-500.0,0.00010958,2]
[353142199,1739599850412,-565.41,0.00010958,2]
[353142200,1739599850423,-501.74047751,0.00010958,2]
[353142201,1739599850433,-500.0,0.00010958,2]
[353142202,1739599850443,-500.0,0.00010958,2]
[353142203,1739599850453,-503.93771541,0.00010958,2]
[353142204,1739599850464,-500.0,0.00010958,2]
[353142205,1739599850474,-500.0,0.00010958,2]
[353142206,1739599850484,-642.77,0.00010958,2]
[353142207,1739599850493,-500.0,0.00010958,2]
[353142208,1739599850503,-500.0,0.00010958,2]
[353142209,1739599850513,-500.0,0.00010958,2]
[353142210,1739599850522,-500.0,0.00010958,2]
[353142211,1739599850532,-500.0,0.00010958,2]
[353142212,1739599850541,-500.0,0.00010958,2]
[353142213,1739599850551,-500.0,0.00010958,2]
[353142214,1739599850560,-500.0,0.00010958,2]
[353142215,1739599850573,-508.67113656,0.00010958,2]
[353142216,1739599850583,-627.77,0.00010958,2]
[353142217,1739599850594,-500.0,0.00010958,2]
[353142218,1739599850737,-504.54334439,0.00010958,2]
[353142219,1739599850782,-500.0,0.00010958,2]
[353142220,1739599850792,-504.74818212,0.00010958,2]
[353142221,1739599850802,-500.0,0.00010958,2]
[353142222,1739599850812,-500.0,0.00010958,2]
[353142223,1739599850822,-505.80159384,0.00010958,2]
[353142224,1739599850832,-500.0,0.00010958,2]
[353142225,1739599850842,-500.0,0.00010958,2]
[353142226,1739599850852,-500.0,0.00010958,2]
[353142227,1739599850862,-500.0,0.00010958,2]
[353142228,1739599850871,-500.0,0.00010958,2]
[353142229,1739599850881,-507.11890795,0.00010958,2]
[353142230,1739599850891,-500.0,0.00010958,2]
[353142231,1739599850900,-500.0,0.00010958,2]
[353142232,1739599850910,-500.0,0.00010958,2]
[353142233,1739599850920,-500.0,0.00010958,2]
[353142234,1739599850929,-505.03281762,0.00010958,2]
[353142235,1739599850939,-502.20981673,0.00010958,2]
[353142236,1739599850948,-500.0,0.00010958,2]
[353142237,1739599850958,-500.0,0.00010958,2]
[353142238,1739599850967,-641.56,0.00010958,2]
[353142239,1739599850977,-505.70184442,0.00010958,2]
[353142240,1739599850987,-360.80005796,0.00010958,2]
[353142241,1739599851783,-340.84982847,0.00010858,2]
[353142242,1739599851794,-144.83636399,0.00010958,2]
[353142243,1739599851804,-500.0,0.00010958,2]
[353142244,1739599851814,-262.57489954,0.00010958,2]
[353142245,1739599899924,680.21988723,8.699e-05,2]
[353142246,1739599899949,790.18771277,8.699e-05,2]
[353142251,1739600067675,3567.4429,8.256e-05,2]
[353142252,1739600177354,500.0,0.0002,120]
[353142254,1739600187525,500.0,0.0002,120]
[353142256,1739600296814,1000.0,0.0002,120]
[353142259,1739600581096,172.75,7.788e-05,2]
[353142264,1739600868548,570.9,8.219e-05,2]
[353142268,1739600953140,-1735.15844884,8.836e-05,2]
[353142275,1739601031665,-849.3640825,8.836e-05,2]
[353142276,1739601031677,-3800.43312349,8.836e-05,2]
[353142277,1739601031788,-305.94287554,8.836e-05,2]
[353142278,1739601031801,-1005.2,8.836e-05,2]
[353142279,1739601031812,-1568.00595115,8.836e-05,2]
[353142280,1739601031824,-1708.709968,8.836e-05,2]
[353142281,1739601031836,-3194.3548009,8.836e-05,2]
[353142282,1739601031847,-963.01034958,8.836e-05,2]
[353142283,1739601031857,-1436.98965042,8.836e-05,2]
[353142284,1739601031868,-774.90712446,8.836e-05,2]
[353142314,1739601037668,-10689.08972512,8.836e-05,2]
[353142315,1739601037678,-1486.4417,8.836e-05,2]
[353142316,1739601037687,-500.0,8.851e-05,2]
[353142317,1739601037696,-344.4165,8.851e-05,2]
[353142318,1739601037705,-1000.0,8.851e-05,2]
[353142319,1739601037715,-2500.0,8.851e-05,2]
[353142320,1739601037725,-2860.25905083,8.973e-05,2]
[353142321,1739601037736,-35626.74214917,8.973e-05,2]
[353142322,1739601037745,-5000.0,8.973e-05,2]
[353142323,1739601037755,-250.0,9.304e-05,2]
[353142324,1739601037764,-289.6,9.444e-05,2]
[353142325,1739601037774,-150.0,9.464e-05,2]
[353142326,1739601037783,-1000.0,9.479e-05,2]
[353142327,1739601037792,-150.0,9.719e-05,2]
[353142328,1739601037801,-1000.0,9.8e-05,3]
[353142329,1739601037810,-805.95,9.822e-05,2]
[353142330,1739601037819,-22402.86905022,9.866e-05,2]
[353142331,1739601037863,-1497.13094978,9.866e-05,2]
[353142332,1739601037873,-2100.0,9.9e-05,3]
[353142333,1739601037883,-157.45211121,0.0001,2]
[353142382,1739601039713,-499.13572046,0.0001,2]
[353142383,1739601039761,-430.52113329,0.0001,2]
[353142384,1739601039773,-257.69449994,0.0001,2]
[353142385,1739601039885,-383.39256349,0.0001,2]
[353142386,1739601039919,-92344.68746699,0.0001,2]
[353142387,1739601039965,-489.9573665,0.0001,2]
[353142388,1739601040064,-4540.28453403,0.0001,2]
[353142389,1739601040076,-39857.56944935,0.0001,2]
[353142393,1739601042560,-480.4478,8.851e-05,2]
[353142394,1739601042570,-1092.94786405,0.0001,2]
[353142395,1739601042581,-7720.0,0.0001,2]
[353142399,1739601042666,-48858.83346598,0.0001,2]
[353142400,1739601042678,-467.84499314,0.0001,2]
[353142401,1739601042798,-40547.78547809,0.0001,2]
[353142402,1739601042807,-3200.0,0.0001,3]
[353142403,1739601042816,-13413.58783012,0.0001,2]
[353142404,1739601042879,-757.07460378,0.0001,2]
[353142425,1739601045624,-909.34146577,8.851e-05,2]
[353142426,1739601045717,-19.23203423,8.851e-05,2]
[353142427,1739601045727,-513.45681477,8.973e-05,2]
[353142428,1739601045808,-4486.54318523,8.973e-05,2]
[353142429,1739601045818,-40732.12085778,0.0001,2]
[353142430,1739601045827,-165.56,0.00010011,2]
[353142431,1739601045839,-203.23823742,0.00010062,2]
[353142432,1739601045848,-500.0,0.00010071,2]
[353142433,1739601045858,-500.0,0.00010071,2]
[353142434,1739601045867,-500.0,0.00010071,2]
[353142435,1739601045876,-348.69816404,0.00010071,2]
[353142436,1739601045886,-281.69060875,0.00010071,2]
[353142437,1739601045895,-497.03253678,0.00010071,2]
[353142438,1739601045904,-500.0,0.00010071,2]
[353142439,1739601045913,-500.0,0.00010071,2]
[353142440,1739601045923,-500.0,0.00010071,2]
[353142441,1739601045932,-607.66618746,0.00010071,2]
[353142442,1739601045941,-577298.52765792,0.00010072,2]
[353142444,1739601256322,800.0,0.0002,120]
[353142445,1739601295192,500.0,0.0002,120]
[353142446,1739601327757,4042.82882511,0.0001988,120]
[353142450,1739601918634,542.35,8.219e-05,2]
[353142453,1739602151148,-1793.01178879,8.836e-05,2]
[353142455,1739602231791,-5142.1462041,8.836e-05,2]
[353142456,1739602232055,-1032.43087862,8.836e-05,2]
[353142470,1739602237643,-26585.69032849,8.836e-05,2]
[353142471,1739602237653,-498.4653,8.851e-05,2]
[353142472,1739602237663,-500.0,8.851e-05,2]
[353142473,1739602237674,-906.1218,8.973e-05,2]
[353142474,1739602237683,-4640.8436,8.973e-05,2]
[353142475,1739602237693,-5165.33345893,8.973e-05,2]
[353142476,1739602237703,-402.97,9.441e-05,2]
[353142477,1739602237713,-151.87,9.471e-05,2]
[353142478,1739602237723,-151.87,9.518e-05,2]
[353142479,1739602237732,-8697.16,9.587e-05,2]
[353142480,1739602237742,-293.2,9.625e-05,2]
[353142481,1739602237752,-250.0,9.833e-05,2]
[353142482,1739602237762,-340.84982847,9.972e-05,2]
[353142483,1739602237772,-150.0,9.973e-05,2]
[353142484,1739602237782,-700.0,0.0001,2]
[353142485,1739602237791,-4000.0,0.0001,2]
[353142486,1739602237800,-800.0,0.0001,3]
[353142487,1739602237810,-4138.57906372,0.0001,2]
[353142488,1739602237820,-491.79,0.00010007,2]
[353142489,1739602237829,-497.7,0.00010031,2]
[353142490,1739602237838,-492.9486146,0.00010071,2]
[353142491,1739602237848,-3131.071,0.00010071,2]
[353142492,1739602237857,-175.13,0.00010071,2]
[353142493,1739602237866,-91.00468494,0.00010071,2]
[353142494,1739602237878,-58.99531506,0.00010071,2]
[353142495,1739602237887,-752.35599794,0.00010072,2]
[353142496,1739602237968,-16131.68368021,0.00010072,2]
[353142497,1739602237979,-566.66967189,0.00010072,2]
[353142498,1739602238009,-491.99999916,0.00010072,2]
[353142499,1739602238020,-10991.17998013,0.00010072,2]
[353142500,1739602238044,-1072.35,0.00010072,2]
[353142501,1739602238055,-10586.76598914,0.00010072,2]
[353142502,1739602238066,-9260.05823244,0.00010072,2]
[353142570,1739602239857,-32902.31564465,0.00010072,2]
[353142571,1739602239870,-785.83533901,0.00010072,2]
[353142572,1739602239881,-10661.23488406,0.00010072,2]
[353142573,1739602240157,-619.9049794,0.00010072,2]
[353142574,1739602240168,-1080.5154265,0.00010072,2]
[353142577,1739602242856,-2494.99999999,0.00010072,2]
[353142578,1739602242867,-854.55749319,0.00010072,2]
[353142579,1739602242878,-7905.78310045,0.00010072,2]
[353142580,1739602242895,-264.76451,0.00010072,2]
[353142581,1739602242929,-490.44403302,0.00010072,2]
[353142582,1739602243051,-296.13443335,0.00010072,2]
[353142583,1739602243063,-1973.4,0.00010072,2]
[353142584,1739602243074,-873.090994,0.00010072,2]
[353142585,1739602243085,-740.12019544,0.00010072,2]
[353142586,1739602243096,-17519.22885053,0.00010072,2]
[353142587,1739602243108,-424.04069803,0.00010072,2]
[353142588,1739602243148,-8183.03819307,0.00010072,2]
[353142589,1739602243208,-22460.05586245,0.00010072,2]
[353142590,1739602243219,-1721.2882405,0.00010072,2]
[353142640,1739602663696,151.7,7.592e-05,2]
[353142642,1739602967397,515.23,8.219e-05,2]
[353142643,1739603207405,499.83069645,0.0001856,120]
[353142644,1739603345699,280.0417,8.699e-05,2]
[353142645,1739603432109,-150.0,8.835e-05,2]
[353142646,1739603432119,-145.95831041,8.836e-05,2]
[353142647,1739603432289,-169.68518959,8.836e-05,2]
[353142648,1739603432299,-2015.84988374,8.836e-05,2]
[353142649,1739603432356,-1623.37971626,8.836e-05,2]
[353142650,1739603432366,-16053.533,8.836e-05,2]
[353142651,1739603432376,-6728.0142,8.836e-05,2]
[353142652,1739603432385,-2500.0,8.851e-05,2]
[353142653,1739603432397,-746.5981,8.973e-05,2]
[353142654,1739603432407,-469.8166,8.973e-05,2]
[353142655,1739603432417,-234.56,9.306e-05,2]
[353142656,1739603432428,-1000.0,9.49e-05,2]
[353142657,1739603432438,-201.48,9.562e-05,2]
[353142658,1739603432448,-171.28,9.563e-05,2]
[353142659,1739603432459,-500.0,9.699e-05,2]
[353142660,1739603432469,-150.0,9.718e-05,2]
[353142661,1739603432480,-200.0,9.719e-05,2]
[353142662,1739603432490,-250.0,9.788e-05,2]
[353142663,1739603432500,-348.95,9.922e-05,2]
[353142664,1739603432509,-340.84982847,9.972e-05,2]
[353142665,1739603432519,-1100.0,0.0001,3]
[353142666,1739603432529,-4000.0,0.0001,2]
[353142667,1739603432539,-602.17783388,0.00010071,2]
[353142668,1739603432549,-2504.857,0.00010071,2]
[353142669,1739603432559,-175.13,0.00010071,2]
[353142670,1739603432568,-51445.41225494,0.00010072,2]
[353142671,1739603432581,-2235.54614608,0.00010072,2]
[353142696,1739603437968,-424.08038043,0.00010072,2]
[353142697,1739603437980,-4932.95769895,0.00010072,2]
[353142736,1739603443170,-990.97703664,0.00010072,2]
[353142737,1739603443188,-3849.27735056,0.00010072,2]
[353142738,1739603443199,-1375.74985,0.00010072,2]
[353142763,1739603484030,680.2199,8.699e-05,2]
[353142764,1739603646172,2310.0,0.0002,120]
[353142766,1739603805234,151.7,7.418e-05,2]
[353142768,1739604018903,593.34,8.219e-05,2]
[353142783,1739604632140,-912.0841,8.836e-05,2]
[353142784,1739604632151,-1046.75815498,8.836e-05,2]
[353142785,1739604632187,-2596.15244502,8.836e-05,2]
[353142786,1739604632196,-300.0,8.85e-05,2]
[353142787,1739604632205,-2500.0,8.851e-05,2]
[353142788,1739604632214,-669.0262051,8.973e-05,2]
[353142789,1739604632594,-330.62029001,8.973e-05,2]
[353142790,1739604632605,-2293.13147782,8.973e-05,2]
[353142791,1739604632618,-400.0,8.973e-05,2]
[353142793,1739604632633,-454.81992707,8.973e-05,2]
[353142795,1739604632643,-221.9796,8.973e-05,2]
[353142797,1739604632652,-371.54,9.11e-05,2]
[353142798,1739604632661,-103.21060108,9.288e-05,2]
[353142801,1739604632673,-256.7011023,9.288e-05,2]
[353142803,1739604632684,-14501.05829662,9.288e-05,2]
[353142805,1739604632693,-250.0,9.309e-05,2]
[353142807,1739604632703,-150.0,9.39e-05,2]
[353142808,1739604632712,-503.59,9.4e-05,2]
[353142809,1739604632721,-285.58,9.428e-05,2]
[353142810,1739604632731,-1000.0,9.458e-05,2]
[353142811,1739604632740,-167.55,9.54e-05,2]
[353142812,1739604632750,-1158.85,9.808e-05,2]
[353142813,1739604632759,-150.0,9.87e-05,2]
[353142814,1739604632769,-1000.0,9.9e-05,3]
[353142815,1739604632778,-1000.0,9.9e-05,2]
[353142816,1739604632787,-167.28915209,9.972e-05,2]
[353142817,1739604632796,-2668.309,9.979e-05,2]
[353142818,1739604632806,-171.692,9.979e-05,2]
[353142819,1739604632815,-150.0,9.979e-05,2]
[353142820,1739604632824,-19579.41227931,9.98e-05,2]
[353142821,1739604632834,-28917.07112399,9.99e-05,2]
[353142822,1739604632843,-1300.0,0.0001,5]
[353142823,1739604632852,-245967.17515298,0.0001,2]
[353142824,1739604632861,-2100.0,0.0001,3]
[353142825,1739604632871,-96467.44018865,0.0001,2]
[353142826,1739604632883,-12448.16541727,0.0001,2]
[353142827,1739604632895,-6834.64085429,0.0001,2]
[353142828,1739604632906,-2614.97457783,0.0001,2]
[353142829,1739604632917,-3653.74999986,0.0001,2]
[353142830,1739604632929,-3592.79863,0.0001,2]
[353142831,1739604632940,-3590.61534836,0.0001,2]
[353142832,1739604632951,-254.46,0.0001,2]
[353142840,1739604638004,-1105.0,8.836e-05,2]
[353142846,1739604638154,-3215.7209,8.836e-05,2]
[353142847,1739604638165,-2830.46132671,0.0001,2]
[353142848,1739604638174,-2982.28703038,0.0001,2]
[353142849,1739604638191,-500.0,0.0001,2]
[353142850,1739604638335,-441.29123305,0.0001,2]
[353142859,1739604640426,-456.0927616,0.0001,2]
[353142860,1739604640440,-686.30910002,0.0001,2]
[353142861,1739604640452,-8543.78926681,0.0001,2]
[353142862,1739604640462,-332.51280493,0.0001,2]
[353142863,1739604640473,-203.23823743,0.00010062,2]
[353142864,1739604640489,-244.35490106,0.00010071,2]
[353142865,1739604640498,-15400.56747377,0.00010072,2]
[353142906,1739604646196,-2825.69565413,0.00010072,2]
[353142907,1739604646243,-780.45643997,0.00010072,2]
[353142908,1739604646255,-688.1499968,0.00010072,2]
[353142923,1739605089155,608.46,8.219e-05,2]
[353142924,1739605149208,2600.0,8.22e-05,2]
[353142925,1739605149626,3000.0,8.22e-05,2]
[353142927,1739605766852,3619.17253381,0.0002,120]
[353142934,1739605832563,-685.05424735,8.836e-05,2]
[353142935,1739605832575,-498.92723845,8.836e-05,2]
[353142936,1739605832587,-10760.4844142,8.836e-05,2]
[353142937,1739605832597,-7417.5605,8.836e-05,2]
[353142938,1739605832606,-33.62971013,8.851e-05,2]
[353142939,1739605832619,-927.23368987,8.851e-05,2]
[353142940,1739605832628,-501.5347,8.851e-05,2]
[353142941,1739605832637,-150.0,8.912e-05,2]
[353142942,1739605832647,-800.0,8.972e-05,2]
[353142943,1739605832656,-150.0,8.972e-05,2]
[353142944,1739605832665,-8009.1275,8.973e-05,2]
[353142945,1739605832674,-5000.0,8.973e-05,2]
[353142946,1739605832684,-257.98,9.124e-05,2]
[353142947,1739605832693,-730.73,9.124e-05,2]
[353142948,1739605832702,-171.28,9.298e-05,2]
[353142949,1739605832712,-250.0,9.353e-05,2]
[353142950,1739605832722,-507.0,9.397e-05,2]
[353142952,1739605832731,-2600.0,9.59e-05,2]
[353142954,1739605832740,-2881.10707224,9.59e-05,2]
[353142955,1739605832752,-118.89292776,9.59e-05,2]
[353142956,1739605832761,-169.84,9.624e-05,2]
[353142957,1739605832770,-1000.0,9.648e-05,2]
[353142958,1739605832780,-251.79,9.669e-05,2]
[353142959,1739605832789,-901.61,9.67e-05,2]
[353142960,1739605832798,-1000.0,9.7e-05,2]
[353142962,1739605832808,-150.0,9.736e-05,2]
[353142964,1739605832817,-255.0,9.869e-05,2]
[353142965,1739605832826,-198.2644551,9.972e-05,2]
[353142967,1739605832835,-343.65053397,9.972e-05,2]
[353142969,1739605832844,-900.0,0.0001,3]
[353142971,1739605832854,-2134.648,0.00010071,2]
[353142973,1739605832863,-171.6928118,0.00010071,2]
[353142975,1739605832872,-1821.73154158,0.00010072,2]
[353142979,1739605832898,-45649.03227229,0.00010072,2]
[353142991,1739605838294,-7080.69797717,0.00010072,2]
[353142992,1739605838307,-742.78064054,0.00010072,2]
[353142993,1739605838318,-5496.91435346,0.00010072,2]
[353142994,1739605838330,-22346.5895576,0.00010072,2]
[353142995,1739605838385,-1943.46898318,0.00010072,2]
[353142996,1739605838477,-4365.31421469,0.00010072,2]
[353143015,1739605840423,-714.93879709,0.00010072,2]
[353143016,1739605840633,-19825.6,0.00010072,2]